[Event "*** Titled Tuesday 3|2 Blitz"]
[Site "Chess.com"]
[Date "2016.08.02"]
[Round "1"]
[White "ChadaevNikolay"]
[Black "IamSchrodingersCat"]
[Result "1-0"]
[WhiteElo "2527"]
[BlackElo "2218"]
[TimeControl "180+2"]
[EndTime "11:03:01 PDT"]
[Termination "ChadaevNikolay won by resignation"]

1. e4 {[%clk 0:03:01.5]} 1... c5 {[%clk 0:03:00.1]} 2. Nf3 {[%clk 0:03:01.8]}
2... d6 {[%clk 0:03:01.2]} 3. c3 {[%clk 0:03:02.3]} 3... Nf6 {[%clk 0:03:00]} 4.
Be2 {[%clk 0:03:03]} 4... Bg4 {[%clk 0:03:00.3]} 5. O-O {[%clk 0:03:02.8]} 5...
Nc6 {[%clk 0:03:01.1]} 6. d4 {[%clk 0:03:00.2]} 6... Bxf3 {[%clk 0:02:56.3]} 7.
Bxf3 {[%clk 0:02:59.9]} 7... cxd4 {[%clk 0:02:56.6]} 8. cxd4 {[%clk 0:03:00.5]}
8... e5 {[%clk 0:02:54.9]} 9. Be3 {[%clk 0:03:01]} 9... exd4 {[%clk 0:02:43.5]}
10. Bxd4 {[%clk 0:03:01.5]} 10... Nxd4 {[%clk 0:02:45.4]} 11. Qxd4 {[%clk
0:03:02]} 11... Be7 {[%clk 0:02:44]} 12. Nc3 {[%clk 0:03:02.4]} 12... Qd7 {[%clk
0:02:27.6]} 13. Rad1 {[%clk 0:02:59.3]} 13... Rd8 {[%clk 0:02:28.1]} 14. Qxa7
{[%clk 0:02:56.5]} 14... Qe6 {[%clk 0:02:02.8]} 15. Qxb7 {[%clk 0:02:38.7]}
15... O-O {[%clk 0:02:03.6]} 16. Qa6 {[%clk 0:02:39.1]} 16... Rb8 {[%clk
0:01:57.8]} 17. Qe2 {[%clk 0:02:37.8]} 17... Nd7 {[%clk 0:01:53.1]} 18. Bg4
{[%clk 0:02:37.3]} 1-0

[Event "*** Titled Tuesday 3|2 Blitz"]
[Site "Chess.com"]
[Date "2016.08.02"]
[Round "1"]
[White "ZEN-22"]
[Black "Keranke"]
[Result "0-1"]
[WhiteElo "2312"]
[BlackElo "2629"]
[TimeControl "180+2"]
[EndTime "11:03:39 PDT"]
[Termination "Keranke won by resignation"]

1. e4 {[%clk 0:03:01.4]} 1... g6 {[%clk 0:03:00.5]} 2. h4 {[%clk 0:03:01.9]}
2... h6 {[%clk 0:03:01.4]} 3. h5 {[%clk 0:03:03]} 3... g5 {[%clk 0:03:02.7]} 4.
f4 {[%clk 0:03:04.6]} 4... gxf4 {[%clk 0:03:04.6]} 5. d4 {[%clk 0:03:05.4]} 5...
d6 {[%clk 0:03:05.8]} 6. Bxf4 {[%clk 0:03:06.3]} 6... Bg7 {[%clk 0:03:07.5]} 7.
Nc3 {[%clk 0:03:07.1]} 7... Nf6 {[%clk 0:03:08.5]} 8. Nf3 {[%clk 0:03:06.8]}
8... Bg4 {[%clk 0:03:09.2]} 9. e5 {[%clk 0:03:08]} 9... Nxh5 {[%clk 0:03:10]}
10. Qd2 {[%clk 0:02:59.6]} 10... Bxf3 {[%clk 0:02:47.5]} 11. gxf3 {[%clk
0:03:00.2]} 11... Nxf4 {[%clk 0:02:49]} 12. Qxf4 {[%clk 0:03:01.3]} 12... dxe5
{[%clk 0:02:31.3]} 13. dxe5 {[%clk 0:03:02.1]} 13... Nc6 {[%clk 0:02:32.6]} 14.
e6 {[%clk 0:03:02.9]} 14... fxe6 {[%clk 0:02:15.8]} 15. Rd1 {[%clk 0:03:03.2]}
15... Nd4 {[%clk 0:02:00.8]} 16. Bd3 {[%clk 0:03:01.5]} 16... Qd6 {[%clk
0:01:59.5]} 17. Qg4 {[%clk 0:03:01.6]} 17... Bf6 {[%clk 0:01:57.3]} 18. Ne4
{[%clk 0:03:01.7]} 18... Qe5 {[%clk 0:01:56.5]} 19. f4 {[%clk 0:03:01.8]} 19...
Qa5+ {[%clk 0:01:52.2]} 20. c3 {[%clk 0:03:02.6]} 20... O-O-O {[%clk 0:01:51.7]}
21. O-O {[%clk 0:03:00.7]} 21... Rdg8 {[%clk 0:01:46.6]} 22. Ng5 {[%clk
0:03:00.6]} 22... hxg5 {[%clk 0:01:47.4]} 23. f5 {[%clk 0:03:00.7]} 23... Nxf5
{[%clk 0:01:46.1]} 24. Bxf5 {[%clk 0:03:01.8]} 24... Qb6+ {[%clk 0:01:44.1]} 25.
Kg2 {[%clk 0:03:01.9]} 25... exf5 {[%clk 0:01:45.2]} 26. Rxf5 {[%clk 0:03:02.6]}
26... Kb8 {[%clk 0:01:45.7]} 27. Rfd5 {[%clk 0:03:03.7]} 27... a6 {[%clk
0:01:43.1]} 28. R1d2 {[%clk 0:03:02.5]} 28... Rh4 {[%clk 0:01:42.8]} 29. Qe6
{[%clk 0:03:01.7]} 29... Qxe6 {[%clk 0:01:43.2]} 0-1

[Event "*** Titled Tuesday 3|2 Blitz"]
[Site "Chess.com"]
[Date "2016.08.02"]
[Round "1"]
[White "dabee"]
[Black "FearlessKing64"]
[Result "1-0"]
[WhiteElo "2421"]
[BlackElo "2051"]
[TimeControl "180+2"]
[EndTime "11:04:36 PDT"]
[Termination "dabee won by resignation"]

1. d4 {[%clk 0:02:49.6]} 1... Nf6 {[%clk 0:03:00.1]} 2. Bg5 {[%clk 0:02:49.6]}
2... d5 {[%clk 0:03:00.2]} 3. e3 {[%clk 0:02:49.3]} 3... Ne4 {[%clk 0:02:59.2]}
4. Bf4 {[%clk 0:02:49.7]} 4... c5 {[%clk 0:03:00]} 5. Bd3 {[%clk 0:02:49.8]}
5... Qb6 {[%clk 0:02:59.1]} 6. Bxe4 {[%clk 0:02:49.3]} 6... dxe4 {[%clk
0:02:57.6]} 7. Nc3 {[%clk 0:02:48.6]} 7... cxd4 {[%clk 0:02:54.4]} 8. Qxd4
{[%clk 0:02:43.7]} 8... Qxd4 {[%clk 0:02:49.1]} 9. exd4 {[%clk 0:02:43.8]} 9...
Bd7 {[%clk 0:02:30.6]} 10. Nxe4 {[%clk 0:02:36.4]} 10... Bc6 {[%clk 0:02:25]}
11. f3 {[%clk 0:02:37.1]} 11... g6 {[%clk 0:02:19.4]} 12. O-O-O {[%clk
0:02:32.3]} 12... Bg7 {[%clk 0:02:17.4]} 13. d5 {[%clk 0:02:31.4]} 13... Bd7
{[%clk 0:02:18.4]} 14. Nc5 {[%clk 0:02:28.7]} 14... b6 {[%clk 0:02:14.4]} 15.
Nb3 {[%clk 0:02:27.1]} 15... Na6 {[%clk 0:02:08.8]} 16. Ne2 {[%clk 0:02:26.6]}
16... Rc8 {[%clk 0:02:07.3]} 17. a3 {[%clk 0:02:22.9]} 17... Bf5 {[%clk
0:02:00.3]} 18. Ned4 {[%clk 0:02:22.8]} 18... Bd7 {[%clk 0:01:49.4]} 19. Rhe1
{[%clk 0:02:20]} 19... Nc5 {[%clk 0:01:47]} 20. Bd6 {[%clk 0:02:11.3]} 20...
Nxb3+ {[%clk 0:01:38.1]} 21. Nxb3 {[%clk 0:02:10.1]} 21... Bf6 {[%clk 0:01:31]}
22. Bxe7 {[%clk 0:02:08.2]} 22... Bxe7 {[%clk 0:01:28.8]} 23. d6 {[%clk
0:02:08.4]} 23... O-O {[%clk 0:01:27.7]} 24. dxe7 {[%clk 0:02:07.9]} 1-0

[Event "*** Titled Tuesday 3|2 Blitz"]
[Site "Chess.com"]
[Date "2016.08.02"]
[Round "1"]
[White "Alexander_Moskalenko"]
[Black "Tash_Boy"]
[Result "1-0"]
[WhiteElo "2627"]
[BlackElo "2296"]
[TimeControl "180+2"]
[EndTime "11:04:46 PDT"]
[Termination "Alexander_Moskalenko won by resignation"]

1. e4 {[%clk 0:03:01.9]} 1... c5 {[%clk 0:03:00.5]} 2. Nf3 {[%clk 0:03:03.4]}
2... d6 {[%clk 0:03:02.1]} 3. d4 {[%clk 0:03:05.3]} 3... cxd4 {[%clk 0:03:03.6]}
4. Nxd4 {[%clk 0:03:06.8]} 4... Nf6 {[%clk 0:03:05.2]} 5. Nc3 {[%clk 0:03:08.4]}
5... e6 {[%clk 0:03:06.8]} 6. g4 {[%clk 0:03:08.6]} 6... e5 {[%clk 0:03:08]} 7.
Bb5+ {[%clk 0:03:05.3]} 7... Bd7 {[%clk 0:03:09.2]} 8. Bxd7+ {[%clk 0:03:05.4]}
8... Qxd7 {[%clk 0:03:10.4]} 9. Nf5 {[%clk 0:03:06]} 9... h5 {[%clk 0:03:10.8]}
10. Bg5 {[%clk 0:03:04.6]} 10... Nh7 {[%clk 0:03:05.7]} 11. Be3 {[%clk
0:02:51.3]} 11... hxg4 {[%clk 0:03:06.6]} 12. Qd3 {[%clk 0:02:43.5]} 12... g6
{[%clk 0:03:01.1]} 13. Ng3 {[%clk 0:02:44.9]} 13... Nc6 {[%clk 0:03:01.2]} 14.
O-O-O {[%clk 0:02:46.1]} 14... O-O-O {[%clk 0:02:59.4]} 15. Nd5 {[%clk
0:02:44.6]} 15... Kb8 {[%clk 0:02:57]} 16. Kb1 {[%clk 0:02:40.6]} 16... Bg7
{[%clk 0:02:56.3]} 17. c3 {[%clk 0:02:35.3]} 17... Rhf8 {[%clk 0:02:55.1]} 18.
h3 {[%clk 0:02:32]} 18... gxh3 {[%clk 0:02:54.2]} 19. Qf1 {[%clk 0:02:33.7]}
19... f5 {[%clk 0:02:50.4]} 20. Qxh3 {[%clk 0:02:34]} 20... Nf6 {[%clk
0:02:50.6]} 21. Nxf6 {[%clk 0:02:30.7]} 21... Bxf6 {[%clk 0:02:48.3]} 22. exf5
{[%clk 0:02:32.3]} 22... gxf5 {[%clk 0:02:47.2]} 23. Qxf5 {[%clk 0:02:32.7]}
23... Qxf5+ {[%clk 0:02:46.2]} 24. Nxf5 {[%clk 0:02:34.6]} 24... d5 {[%clk
0:02:47.7]} 25. Bc5 {[%clk 0:02:25.5]} 25... Rf7 {[%clk 0:02:38.4]} 26. Nd6
{[%clk 0:02:19.3]} 26... Rfd7 {[%clk 0:02:38.4]} 27. Rxd5 {[%clk 0:02:19.9]}
27... Be7 {[%clk 0:02:34.5]} 28. Rhd1 {[%clk 0:02:00.7]} 28... b6 {[%clk
0:02:22.4]} 29. Ba3 {[%clk 0:01:59.7]} 29... Na5 {[%clk 0:02:23.3]} 30. Kc2
{[%clk 0:01:56.1]} 30... Nc4 {[%clk 0:02:16.9]} 31. Nxc4 {[%clk 0:01:55.7]}
31... Rxd5 {[%clk 0:02:15]} 32. Rxd5 {[%clk 0:01:57.6]} 32... Rxd5 {[%clk
0:02:16.4]} 33. Bxe7 {[%clk 0:01:58.9]} 33... Kc7 {[%clk 0:02:18]} 34. Bf6
{[%clk 0:01:59]} 34... e4 {[%clk 0:02:18.4]} 35. Bd4 {[%clk 0:02:00]} 35... Rf5
{[%clk 0:02:17.4]} 36. Nd2 {[%clk 0:02:00.6]} 36... Rf4 {[%clk 0:02:18.3]} 37.
Be5+ {[%clk 0:02:01.8]} 1-0

[Event "*** Titled Tuesday 3|2 Blitz"]
[Site "Chess.com"]
[Date "2016.08.02"]
[Round "1"]
[White "usbista"]
[Black "sandropozo"]
[Result "0-1"]
[WhiteElo "2024"]
[BlackElo "2386"]
[TimeControl "180+2"]
[EndTime "11:05:20 PDT"]
[Termination "sandropozo won by resignation"]

1. e4 {[%clk 0:02:55.4]} 1... e6 {[%clk 0:03:00.5]} 2. d4 {[%clk 0:02:55.6]}
2... d5 {[%clk 0:03:02]} 3. Nd2 {[%clk 0:02:57.2]} 3... Ne7 {[%clk 0:03:01.9]}
4. Ngf3 {[%clk 0:02:57.1]} 4... Ng6 {[%clk 0:03:03.3]} 5. exd5 {[%clk
0:02:56.1]} 5... exd5 {[%clk 0:03:03.7]} 6. Bd3 {[%clk 0:02:48.6]} 6... Nf4
{[%clk 0:03:03.9]} 7. O-O {[%clk 0:02:49.3]} 7... Nxd3 {[%clk 0:03:04.1]} 8.
Qe2+ {[%clk 0:02:48.5]} 8... Be7 {[%clk 0:03:02]} 9. Qxd3 {[%clk 0:02:49.4]}
9... O-O {[%clk 0:03:03.1]} 10. Ne5 {[%clk 0:02:50]} 10... Nd7 {[%clk
0:02:56.2]} 11. Ndf3 {[%clk 0:02:49.9]} 11... Nf6 {[%clk 0:02:55.9]} 12. Bg5
{[%clk 0:02:48.5]} 12... Ne4 {[%clk 0:02:52.4]} 13. Bxe7 {[%clk 0:02:48.1]}
13... Qxe7 {[%clk 0:02:54]} 14. Nd2 {[%clk 0:02:48]} 14... Bf5 {[%clk
0:02:48.9]} 15. Nxe4 {[%clk 0:02:48.8]} 15... Bxe4 {[%clk 0:02:45.6]} 16. Qe2
{[%clk 0:02:22.8]} 16... f6 {[%clk 0:02:41.7]} 17. Nf3 {[%clk 0:02:22.7]} 17...
Rfe8 {[%clk 0:02:35]} 18. Rfe1 {[%clk 0:02:22.2]} 18... Qf7 {[%clk 0:02:33.5]}
19. Qd1 {[%clk 0:02:21]} 19... Qg6 {[%clk 0:02:27.1]} 20. c3 {[%clk 0:02:21.5]}
20... h6 {[%clk 0:02:09.2]} 21. Re3 {[%clk 0:02:19.7]} 21... Re7 {[%clk
0:02:02.8]} 22. Qf1 {[%clk 0:02:19.9]} 22... Rae8 {[%clk 0:02:01.5]} 23. Rae1
{[%clk 0:02:17.6]} 23... Kf8 {[%clk 0:01:52.8]} 24. Nd2 {[%clk 0:02:14.8]} 24...
Bd3 {[%clk 0:01:47.9]} 25. Rxe7 {[%clk 0:02:11.1]} 25... Rxe7 {[%clk 0:01:47.4]}
0-1

[Event "*** Titled Tuesday 3|2 Blitz"]
[Site "Chess.com"]
[Date "2016.08.02"]
[Round "1"]
[White "ajkom197"]
[Black "LaStreetCmaMaison"]
[Result "0-1"]
[WhiteElo "2189"]
[BlackElo "2487"]
[TimeControl "180+2"]
[EndTime "11:05:25 PDT"]
[Termination "LaStreetCmaMaison won by resignation"]

1. c4 {[%clk 0:03:01.9]} 1... g6 {[%clk 0:02:58.9]} 2. g3 {[%clk 0:03:03.4]}
2... Bg7 {[%clk 0:03:00.5]} 3. Bg2 {[%clk 0:03:05]} 3... d6 {[%clk 0:03:02.1]}
4. e3 {[%clk 0:03:06.3]} 4... c5 {[%clk 0:03:01.5]} 5. Ne2 {[%clk 0:03:07.3]}
5... Nc6 {[%clk 0:03:02.2]} 6. O-O {[%clk 0:03:07.5]} 6... e6 {[%clk 0:03:03.3]}
7. Nbc3 {[%clk 0:03:07.9]} 7... Nge7 {[%clk 0:03:03.7]} 8. d4 {[%clk 0:03:08.9]}
8... O-O {[%clk 0:03:04]} 9. b3 {[%clk 0:03:08.5]} 9... cxd4 {[%clk 0:03:02.2]}
10. Nxd4 {[%clk 0:03:09.3]} 10... Nxd4 {[%clk 0:03:01]} 11. exd4 {[%clk
0:03:10.5]} 11... Rb8 {[%clk 0:02:59.9]} 12. Bb2 {[%clk 0:03:11.3]} 12... a6
{[%clk 0:03:00.4]} 13. a4 {[%clk 0:03:11.2]} 13... Bd7 {[%clk 0:02:56.1]} 14.
Qd2 {[%clk 0:03:12.1]} 14... b5 {[%clk 0:02:53.9]} 15. axb5 {[%clk 0:03:12.3]}
15... axb5 {[%clk 0:02:55.8]} 16. Nxb5 {[%clk 0:03:11.7]} 16... Bxb5 {[%clk
0:02:57.7]} 17. cxb5 {[%clk 0:03:12.8]} 17... Rxb5 {[%clk 0:02:57.1]} 18. Qd3
{[%clk 0:03:10.1]} 18... Qb6 {[%clk 0:02:56.4]} 19. Ra3 {[%clk 0:02:46.3]} 19...
Rb8 {[%clk 0:02:56.2]} 20. Bc1 {[%clk 0:02:29.2]} 20... Qxd4 {[%clk 0:02:50.2]}
21. Qc2 {[%clk 0:02:22.6]} 21... d5 {[%clk 0:02:47.2]} 22. Be3 {[%clk
0:02:22.7]} 22... Qb4 {[%clk 0:02:46.4]} 23. Ra7 {[%clk 0:02:20.6]} 23... Nf5
{[%clk 0:02:46.1]} 24. Bf4 {[%clk 0:02:20]} 24... Rf8 {[%clk 0:02:41.9]} 25. Rb1
{[%clk 0:02:19.1]} 25... Nd4 {[%clk 0:02:34.1]} 26. Qa2 {[%clk 0:02:15.7]} 26...
h5 {[%clk 0:02:21.8]} 27. Be3 {[%clk 0:02:12.9]} 27... Nf5 {[%clk 0:02:20.2]}
28. Ra4 {[%clk 0:02:09.3]} 28... Qe7 {[%clk 0:02:15.8]} 29. Bd2 {[%clk
0:02:05.6]} 29... h4 {[%clk 0:02:14.4]} 30. Bf1 {[%clk 0:02:06]} 30... Rb7
{[%clk 0:02:10.8]} 31. b4 {[%clk 0:02:06.3]} 31... hxg3 {[%clk 0:02:10.2]} 32.
hxg3 {[%clk 0:02:06.9]} 32... Bd4 {[%clk 0:02:11.4]} 33. Kg2 {[%clk 0:02:08.1]}
33... Qf6 {[%clk 0:02:08.2]} 34. Be1 {[%clk 0:02:00.7]} 34... Be5 {[%clk
0:02:04.6]} 35. b5 {[%clk 0:02:00.8]} 35... Bxg3 {[%clk 0:02:02.8]} 36. b6
{[%clk 0:01:52.9]} 36... Be5 {[%clk 0:01:59.1]} 37. Bd2 {[%clk 0:01:52.2]} 37...
Nh4+ {[%clk 0:01:57.8]} 38. Kh3 {[%clk 0:01:51.3]} 38... Qf3+ {[%clk 0:01:56.5]}
0-1

[Event "*** Titled Tuesday 3|2 Blitz"]
[Site "Chess.com"]
[Date "2016.08.02"]
[Round "1"]
[White "BillieKimbah"]
[Black "Alliswell998"]
[Result "1-0"]
[WhiteElo "2505"]
[BlackElo "2209"]
[TimeControl "180+2"]
[EndTime "11:05:34 PDT"]
[Termination "BillieKimbah won by resignation"]

1. d4 {[%clk 0:03:01.9]} 1... Nf6 {[%clk 0:03:00.8]} 2. Nf3 {[%clk 0:02:58.7]}
2... c5 {[%clk 0:03:00.7]} 3. d5 {[%clk 0:02:58.2]} 3... b5 {[%clk 0:02:59.8]}
4. Bg5 {[%clk 0:02:58.3]} 4... Qb6 {[%clk 0:03:00.8]} 5. Bxf6 {[%clk 0:02:53.9]}
5... Qxf6 {[%clk 0:03:02.7]} 6. c3 {[%clk 0:02:54.7]} 6... d6 {[%clk 0:02:55.1]}
7. e4 {[%clk 0:02:54.9]} 7... b4 {[%clk 0:02:48.1]} 8. Bb5+ {[%clk 0:02:14.5]}
8... Bd7 {[%clk 0:02:44.1]} 9. Qa4 {[%clk 0:02:13.2]} 9... Bxb5 {[%clk
0:02:16.8]} 10. Qxb5+ {[%clk 0:02:14]} 10... Nd7 {[%clk 0:02:16.8]} 11. O-O
{[%clk 0:02:14]} 11... g6 {[%clk 0:02:12.4]} 12. Re1 {[%clk 0:01:55.9]} 12...
Rb8 {[%clk 0:01:54.5]} 13. Qa4 {[%clk 0:01:55]} 13... e5 {[%clk 0:01:30.5]} 14.
dxe6 {[%clk 0:01:51.4]} 14... Qxe6 {[%clk 0:01:27.7]} 15. e5 {[%clk 0:01:49.4]}
15... d5 {[%clk 0:01:19.4]} 16. Ng5 {[%clk 0:01:45.1]} 16... Qf5 {[%clk
0:00:44]} 17. e6 {[%clk 0:01:43.5]} 17... fxe6 {[%clk 0:00:45.4]} 18. Nxe6
{[%clk 0:01:43.1]} 1-0

[Event "*** Titled Tuesday 3|2 Blitz"]
[Site "Chess.com"]
[Date "2016.08.02"]
[Round "1"]
[White "Schemato"]
[Black "Gabrielian_Artur"]
[Result "0-1"]
[WhiteElo "2220"]
[BlackElo "2538"]
[TimeControl "180+2"]
[EndTime "11:05:38 PDT"]
[Termination "Gabrielian_Artur won by resignation"]

1. c4 {[%clk 0:03:01.1]} 1... Nf6 {[%clk 0:02:58.7]} 2. Nc3 {[%clk 0:02:59.7]}
2... g6 {[%clk 0:02:59.9]} 3. g3 {[%clk 0:03:00]} 3... Bg7 {[%clk 0:03:01]} 4.
Bg2 {[%clk 0:03:00.3]} 4... O-O {[%clk 0:03:02.6]} 5. e4 {[%clk 0:03:00.9]} 5...
d6 {[%clk 0:03:03.9]} 6. Nge2 {[%clk 0:03:02.5]} 6... c5 {[%clk 0:03:04.8]} 7.
O-O {[%clk 0:03:03.3]} 7... Nc6 {[%clk 0:03:06.1]} 8. d3 {[%clk 0:03:04.4]} 8...
a6 {[%clk 0:03:06.9]} 9. h3 {[%clk 0:03:02.7]} 9... Rb8 {[%clk 0:03:08.1]} 10.
a4 {[%clk 0:03:03.8]} 10... Nd4 {[%clk 0:03:09]} 11. Nxd4 {[%clk 0:03:03.4]}
11... cxd4 {[%clk 0:03:10.5]} 12. Ne2 {[%clk 0:03:04.5]} 12... Nd7 {[%clk
0:03:11.3]} 13. a5 {[%clk 0:02:49.4]} 13... b6 {[%clk 0:03:09.7]} 14. Bd2 {[%clk
0:02:45.7]} 14... b5 {[%clk 0:03:10.8]} 15. b4 {[%clk 0:02:32.7]} 15... bxc4
{[%clk 0:03:10.2]} 16. dxc4 {[%clk 0:02:33]} 16... d3 {[%clk 0:03:11.7]} 17. Nf4
{[%clk 0:02:28.8]} 17... Bxa1 {[%clk 0:03:11.1]} 18. Qxa1 {[%clk 0:02:29.1]}
18... Ne5 {[%clk 0:03:12.2]} 19. Nd5 {[%clk 0:02:08.1]} 19... f6 {[%clk
0:03:07.5]} 20. Rc1 {[%clk 0:01:41.1]} 20... Bxh3 {[%clk 0:03:03.8]} 21. f4
{[%clk 0:01:40.9]} 21... Bxg2 {[%clk 0:03:04.5]} 22. Kxg2 {[%clk 0:01:39.2]}
22... Nd7 {[%clk 0:03:02.1]} 23. Qd4 {[%clk 0:01:36.5]} 23... e6 {[%clk
0:02:56.7]} 24. Ne3 {[%clk 0:01:32.2]} 24... Qc7 {[%clk 0:02:55.4]} 25. Qxd3
{[%clk 0:01:30.2]} 25... f5 {[%clk 0:02:56.4]} 26. exf5 {[%clk 0:01:25.7]} 26...
gxf5 {[%clk 0:02:57.1]} 27. Bc3 {[%clk 0:01:21.7]} 27... Qb7+ {[%clk 0:02:57.3]}
28. Kf2 {[%clk 0:01:18.7]} 28... Nf6 {[%clk 0:02:56.3]} 29. Bxf6 {[%clk
0:01:06.8]} 29... Rxf6 {[%clk 0:02:57.1]} 30. Rb1 {[%clk 0:01:04.2]} 30... Rh6
{[%clk 0:02:55.2]} 31. Ng2 {[%clk 0:00:43.4]} 31... Rh2 {[%clk 0:02:53.3]} 32.
Qf3 {[%clk 0:00:40.5]} 32... Qa7+ {[%clk 0:02:49]} 33. Ke2 {[%clk 0:00:36.2]}
33... Qd4 {[%clk 0:02:50]} 0-1

[Event "*** Titled Tuesday 3|2 Blitz"]
[Site "Chess.com"]
[Date "2016.08.02"]
[Round "1"]
[White "ShimanovAlex"]
[Black "Generalas"]
[Result "1-0"]
[WhiteElo "2561"]
[BlackElo "2253"]
[TimeControl "180+2"]
[EndTime "11:06:05 PDT"]
[Termination "ShimanovAlex won by resignation"]

1. d4 {[%clk 0:02:58.7]} 1... Nf6 {[%clk 0:02:59.9]} 2. Nf3 {[%clk 0:02:56.8]}
2... d5 {[%clk 0:03:00.1]} 3. Bf4 {[%clk 0:02:58]} 3... e6 {[%clk 0:02:57.5]} 4.
e3 {[%clk 0:02:58.1]} 4... Bd6 {[%clk 0:02:58.1]} 5. Bg3 {[%clk 0:02:57.4]} 5...
O-O {[%clk 0:02:58.2]} 6. Nbd2 {[%clk 0:02:57.3]} 6... c5 {[%clk 0:02:58.6]} 7.
c3 {[%clk 0:02:57.6]} 7... Nc6 {[%clk 0:02:59.5]} 8. Bd3 {[%clk 0:02:58.6]} 8...
Re8 {[%clk 0:02:59.8]} 9. Ne5 {[%clk 0:02:58.2]} 9... Bxe5 {[%clk 0:02:48.4]}
10. dxe5 {[%clk 0:02:58.3]} 10... Nd7 {[%clk 0:02:48]} 11. f4 {[%clk 0:02:59.1]}
11... f5 {[%clk 0:02:44.3]} 12. Nf3 {[%clk 0:02:56.3]} 12... Nf8 {[%clk
0:02:43.2]} 13. Bh4 {[%clk 0:02:55.8]} 13... Qb6 {[%clk 0:02:43.3]} 14. Qd2
{[%clk 0:02:53.8]} 14... c4 {[%clk 0:02:18.8]} 15. Bb1 {[%clk 0:02:46.9]} 15...
Nd7 {[%clk 0:02:19.3]} 16. g4 {[%clk 0:02:38.5]} 16... fxg4 {[%clk 0:02:15.2]}
17. Nd4 {[%clk 0:02:38.2]} 17... Nc5 {[%clk 0:02:12.8]} 18. Rg1 {[%clk
0:02:38.3]} 18... Nd3+ {[%clk 0:01:40.5]} 19. Bxd3 {[%clk 0:02:35.9]} 19... cxd3
{[%clk 0:01:40.9]} 20. Rxg4 {[%clk 0:02:34]} 20... Bd7 {[%clk 0:01:36.1]} 21.
Bf6 {[%clk 0:02:28.9]} 21... g6 {[%clk 0:01:34.1]} 22. Qxd3 {[%clk 0:02:21.3]}
22... Qxb2 {[%clk 0:01:32.7]} 23. Rxg6+ {[%clk 0:02:21.7]} 23... Kf8 {[%clk
0:01:28.8]} 24. Rb1 {[%clk 0:02:17.8]} 24... Qxh2 {[%clk 0:01:26.4]} 25. Rg7
{[%clk 0:02:14.3]} 25... Nxd4 {[%clk 0:01:10.3]} 26. cxd4 {[%clk 0:01:54.9]}
26... Qh1+ {[%clk 0:00:47.7]} 27. Kf2 {[%clk 0:01:55.1]} 27... Qh2+ {[%clk
0:00:41.8]} 28. Rg2 {[%clk 0:01:55.5]} 28... Qh5 {[%clk 0:00:37.5]} 29. Qa3+
{[%clk 0:01:55.5]} 1-0

[Event "*** Titled Tuesday 3|2 Blitz"]
[Site "Chess.com"]
[Date "2016.08.02"]
[Round "1"]
[White "NTBT_DHS"]
[Black "josiwales"]
[Result "1-0"]
[WhiteElo "2473"]
[BlackElo "2152"]
[TimeControl "180+2"]
[EndTime "11:06:13 PDT"]
[Termination "NTBT_DHS won by resignation"]

1. d4 {[%clk 0:03:01.9]} 1... f5 {[%clk 0:02:59.6]} 2. g3 {[%clk 0:03:02.2]}
2... Nf6 {[%clk 0:03:00.6]} 3. Bg2 {[%clk 0:03:03.3]} 3... g6 {[%clk 0:03:02.2]}
4. Nh3 {[%clk 0:03:04.3]} 4... Bg7 {[%clk 0:03:03.5]} 5. c3 {[%clk 0:03:05.7]}
5... O-O {[%clk 0:03:04.2]} 6. Qb3+ {[%clk 0:03:06.8]} 6... d5 {[%clk
0:03:01.2]} 7. O-O {[%clk 0:03:08.4]} 7... c6 {[%clk 0:03:01.5]} 8. Nd2 {[%clk
0:03:09.5]} 8... h6 {[%clk 0:03:01.8]} 9. Nf4 {[%clk 0:03:10.1]} 9... g5 {[%clk
0:03:02.1]} 10. Ng6 {[%clk 0:03:11.6]} 10... Re8 {[%clk 0:03:02.7]} 11. e4
{[%clk 0:03:05.3]} 11... fxe4 {[%clk 0:02:59.6]} 12. Nxe4 {[%clk 0:03:05.7]}
12... Bf5 {[%clk 0:03:00.5]} 13. Nxg5 {[%clk 0:02:15.2]} 13... hxg5 {[%clk
0:02:58.2]} 14. Ne5 {[%clk 0:02:15.3]} 14... Qb6 {[%clk 0:02:50.8]} 15. Qd1
{[%clk 0:02:14]} 15... g4 {[%clk 0:02:46.9]} 16. f3 {[%clk 0:02:12.8]} 16...
gxf3 {[%clk 0:02:47]} 17. Qxf3 {[%clk 0:02:10.8]} 17... Be4 {[%clk 0:02:46.5]}
18. Qe2 {[%clk 0:02:02.8]} 18... Bxg2 {[%clk 0:02:46.1]} 19. Kxg2 {[%clk
0:02:04.3]} 19... e6 {[%clk 0:02:39.6]} 20. Bg5 {[%clk 0:01:59.9]} 20... Nbd7
{[%clk 0:02:38.7]} 21. Rf2 {[%clk 0:01:15.7]} 21... Nxe5 {[%clk 0:02:32.7]} 22.
Bxf6 {[%clk 0:01:16.4]} 22... Ng6 {[%clk 0:02:06.8]} 23. Qg4 {[%clk 0:01:10.5]}
23... Kh7 {[%clk 0:01:45.3]} 24. Qh5+ {[%clk 0:01:08.5]} 24... Bh6 {[%clk
0:01:40.6]} 25. Bg5 {[%clk 0:01:09.4]} 25... Nf8 {[%clk 0:01:15.9]} 26. Qxh6+
{[%clk 0:01:00.7]} 26... Kg8 {[%clk 0:01:16.2]} 27. Bf6 {[%clk 0:00:55.2]} 27...
Qc7 {[%clk 0:01:13.4]} 28. Qh8+ {[%clk 0:00:56]} 1-0